Workbook

Sheet crossover-proba-from-lambda - C
A1: lambda | B1: pmin | C1: pbest | D1: pmax | F1: 1-pmin | G1: 1-pbest | H1: 1-pmax | I1: 1/(1-pmin) | J1: 1/(1-pbest) | K1: 1/(1-pmax) | L1: ln(1-pmin) | M1: ln(1-pbest) | N1: ln(1-pmax) | O1: ln(lambda) | P1: ln(1/(1-pmin)) | Q1: ln(1/(1-pbest)) | R1: ln(1/(1-pmax)) | S1: th
A2: 3 | B2: 0.01 | C2: 0.015 | D2: 0.09 | E2: 2440 | F2: =1-B2 -> 0.99 | G2: =1-C2 -> 0.985 | H2: 0.91 | I2: =1/F2 -> 1.01010101 | J2: =1/G2 -> 1.015228426 | K2: 1.098901099 | L2: =LN(F2) -> -0.01005033585 | M2: =LN(G2) -> -0.01511363781 | N2: -0.09431067947 | O2: =LN(A2) -> 1.098612289 | P2: =LN(I2) -> 0.01005033585 | Q2: =LN(J2) -> 0.01511363781 | R2: =LN(K2) -> 0.09431067947 | S2: =1-EXP(-A2/35) -> 0.08214356154
A3: 4 | B3: 0.01 | C3: 0.045 | D3: 0.115 | E3: 2440 | F3: =1-B3 -> 0.99 | G3: =1-C3 -> 0.955 | H3: =1-D3 -> 0.885 | I3: =1/F3 -> 1.01010101 | J3: =1/G3 -> 1.047120419 | K3: =1/H3 -> 1.129943503 | L3: =LN(F3) -> -0.01005033585 | M3: =LN(G3) -> -0.0460439385 | N3: =LN(H3) -> -0.122167634 | O3: =LN(A3) -> 1.386294361 | P3: =LN(I3) -> 0.01005033585 | Q3: =LN(J3) -> 0.0460439385 | R3: =LN(K3) -> 0.122167634 | S3: =1-EXP(-A3/35) -> 0.1079969385
A4: 5 | B4: 0.015 | C4: 0.055 | D4: 0.15 | E4: 2440 | F4: 0.985 | G4: 0.945 | H4: 0.85 | I4: 1.015228426 | J4: 1.058201058 | K4: 1.176470588 | L4: -0.01511363781 | M4: -0.05657035149 | N4: -0.1625189295 | O4: 1.609437912 | P4: 0.01511363781 | Q4: 0.05657035149 | R4: 0.1625189295 | S4: 0.1331221002
A5: 6 | B5: 0.025 | C5: 0.115 | D5: 0.19 | E5: 2440 | F5: 0.975 | G5: 0.885 | H5: 0.81 | I5: 1.025641026 | J5: 1.129943503 | K5: 1.234567901 | L5: -0.02531780798 | M5: -0.122167634 | N5: -0.2107210313 | O5: 1.791759469 | P5: 0.02531780798 | Q5: 0.122167634 | R5: 0.2107210313 | S5: 0.1575395584
A6: 7 | B6: 0.045 | C6: 0.09 | D6: 0.195 | E6: 2440 | F6: 0.955 | G6: 0.91 | H6: 0.805 | I6: 1.047120419 | J6: 1.098901099 | K6: 1.242236025 | L6: -0.0460439385 | M6: -0.09431067947 | N6: -0.2169130016 | O6: 1.945910149 | P6: 0.0460439385 | Q6: 0.09431067947 | R6: 0.2169130016 | S6: 0.1812692469
A7: 8 | B7: 0.055 | C7: 0.125 | D7: 0.2 | E7: 2440 | F7: 0.945 | G7: 0.875 | H7: 0.8 | I7: 1.058201058 | J7: 1.142857143 | K7: 1.25 | L7: -0.05657035149 | M7: -0.1335313926 | N7: -0.2231435513 | O7: 2.079441542 | P7: 0.05657035149 | Q7: 0.1335313926 | R7: 0.2231435513 | S7: 0.2043305384
A8: 9 | B8: 0.11 | C8: 0.22 | D8: 0.32 | E8: 2440 | F8: 0.89 | G8: 0.78 | H8: 0.68 | I8: 1.123595506 | J8: 1.282051282 | K8: 1.470588235 | L8: -0.1165338163 | M8: -0.2484613593 | N8: -0.3856624808 | O8: 2.197224577 | P8: 0.1165338163 | Q8: 0.2484613593 | R8: 0.3856624808 | S8: 0.2267422595
A9: 10 | B9: 0.135 | C9: 0.175 | D9: 0.34 | E9: 2440 | F9: 0.865 | G9: 0.825 | H9: 0.66 | I9: 1.156069364 | J9: 1.212121212 | K9: 1.515151515 | L9: -0.1450257721 | M9: -0.1923718926 | N9: -0.415515444 | O9: 2.302585093 | P9: 0.1450257721 | Q9: 0.1923718926 | R9: 0.415515444 | S9: 0.2485227069
A10: 11 | B10: 0.135 | C10: 0.225 | D10: 0.355 | E10: 2440 | F10: 0.865 | G10: 0.775 | H10: 0.645 | I10: 1.156069364 | J10: 1.290322581 | K10: 1.550387597 | L10: -0.1450257721 | M10: -0.2548922496 | N10: -0.4385049622 | O10: 2.397895273 | P10: 0.1450257721 | Q10: 0.2548922496 | R10: 0.4385049622 | S10: 0.2696896617
A11: 12 | B11: 0.13 | C11: 0.22 | D11: 0.35 | E11: 2440 | F11: 0.87 | G11: 0.78 | H11: 0.65 | I11: 1.149425287 | J11: 1.282051282 | K11: 1.538461538 | L11: -0.1392620673 | M11: -0.2484613593 | N11: -0.4307829161 | O11: 2.48490665 | P11: 0.1392620673 | Q11: 0.2484613593 | R11: 0.4307829161 | S11: 0.2902604043
A12: 13 | B12: 0.14 | C12: 0.25 | D12: 0.365 | E12: 2440 | F12: 0.86 | G12: 0.75 | H12: 0.635 | I12: 1.162790698 | J12: 1.333333333 | K12: 1.57480315 | L12: -0.1508228897 | M12: -0.2876820725 | N12: -0.4541302801 | O12: 2.564949357 | P12: 0.1508228897 | Q12: 0.2876820725 | R12: 0.4541302801 | S12: 0.3102517282
A13: 14 | B13: 0.17 | C13: 0.24 | D13: 0.385 | E13: 2440 | F13: 0.83 | G13: 0.76 | H13: 0.615 | I13: 1.204819277 | J13: 1.315789474 | K13: 1.62601626 | L13: -0.1863295782 | M13: -0.2744368457 | N13: -0.4861330112 | O13: 2.63905733 | P13: 0.1863295782 | Q13: 0.2744368457 | R13: 0.4861330112 | S13: 0.329679954
A14: 15 | B14: 0.175 | C14: 0.295 | D14: 0.41 | E14: 2440 | F14: 0.825 | G14: 0.705 | H14: 0.59 | I14: 1.212121212 | J14: 1.418439716 | K14: 1.694915254 | L14: -0.1923718926 | M14: -0.3495574762 | N14: -0.5276327421 | O14: 2.708050201 | P14: 0.1923718926 | Q14: 0.3495574762 | R14: 0.5276327421 | S14: 0.3485609425
A15: 16 | B15: 0.18 | C15: 0.245 | D15: 0.415 | E15: 2440 | F15: 0.82 | G15: 0.755 | H15: 0.585 | I15: 1.219512195 | J15: 1.324503311 | K15: 1.709401709 | L15: -0.1984509387 | M15: -0.2810375297 | N15: -0.5361434318 | O15: 2.772588722 | P15: 0.1984509387 | Q15: 0.2810375297 | R15: 0.5361434318 | S15: 0.3669101078
A16: 17 | B16: 0.195 | C16: 0.325 | D16: 0.44 | E16: 2440 | F16: 0.805 | G16: 0.675 | H16: 0.56 | I16: 1.242236025 | J16: 1.481481481 | K16: 1.785714286 | L16: -0.2169130016 | M16: -0.3930425881 | N16: -0.5798184953 | O16: 2.833213344 | P16: 0.2169130016 | Q16: 0.3930425881 | R16: 0.5798184953 | S16: 0.3847424299
A17: 18 | B17: 0.23 | C17: 0.325 | D17: 0.42 | E17: 2440 | F17: 0.77 | G17: 0.675 | H17: 0.58 | I17: 1.298701299 | J17: 1.481481481 | K17: 1.724137931 | L17: -0.2613647641 | M17: -0.3930425881 | N17: -0.5447271754 | O17: 2.890371758 | P17: 0.2613647641 | Q17: 0.3930425881 | R17: 0.5447271754 | S17: 0.4020724668
A18: 19 | B18: 0.24 | C18: 0.37 | D18: 0.445 | E18: 2440 | F18: 0.76 | G18: 0.63 | H18: 0.555 | I18: 1.315789474 | J18: 1.587301587 | K18: 1.801801802 | L18: -0.2744368457 | M18: -0.4620354596 | N18: -0.5887871652 | O18: 2.944438979 | P18: 0.2744368457 | Q18: 0.4620354596 | R18: 0.5887871652 | S18: 0.4189143663
A19: 20 | B19: 0.24 | C19: 0.35 | D19: 0.425 | E19: 2440 | F19: 0.76 | G19: 0.65 | H19: 0.575 | I19: 1.315789474 | J19: 1.538461538 | K19: 1.739130435 | L19: -0.2744368457 | M19: -0.4307829161 | N19: -0.5533852382 | O19: 2.995732274 | P19: 0.2744368457 | Q19: 0.4307829161 | R19: 0.5533852382 | S19: 0.435281878
A20: 21 | B20: 0.24 | C20: 0.345 | D20: 0.475 | E20: 2440 | F20: 0.76 | G20: 0.655 | H20: 0.525 | I20: 1.315789474 | J20: 1.526717557 | K20: 1.904761905 | L20: -0.2744368457 | M20: -0.4231200433 | N20: -0.6443570164 | O20: 3.044522438 | P20: 0.2744368457 | Q20: 0.4231200433 | R20: 0.6443570164 | S20: 0.4511883639
A21: 22 | B21: 0.245 | C21: 0.365 | D21: 0.515 | E21: 2440 | F21: 0.755 | G21: 0.635 | H21: 0.485 | I21: 1.324503311 | J21: 1.57480315 | K21: 2.06185567 | L21: -0.2810375297 | M21: -0.4541302801 | N21: -0.723606388 | O21: 3.091042453 | P21: 0.2810375297 | Q21: 0.4541302801 | R21: 0.723606388 | S21: 0.4666468098
A22: 23 | B22: 0.265 | C22: 0.39 | D22: 0.495 | E22: 2440 | F22: 0.735 | G22: 0.61 | H22: 0.505 | I22: 1.360544218 | J22: 1.639344262 | K22: 1.98019802 | L22: -0.3078847798 | M22: -0.4942963218 | N22: -0.6831968497 | O22: 3.135494216 | P22: 0.3078847798 | Q22: 0.4942963218 | R22: 0.6831968497 | S22: 0.4816698358
A23: 24 | B23: 0.28 | C23: 0.385 | D23: 0.535 | E23: 2440 | F23: 0.72 | G23: 0.615 | H23: 0.465 | I23: 1.388888889 | J23: 1.62601626 | K23: 2.150537634 | L23: -0.328504067 | M23: -0.4861330112 | N23: -0.7657178734 | O23: 3.17805383 | P23: 0.328504067 | Q23: 0.4861330112 | R23: 0.7657178734 | S23: 0.4962697063
A24: 25 | B24: 0.285 | C24: 0.365 | D24: 0.555 | E24: 2440 | F24: 0.715 | G24: 0.635 | H24: 0.445 | I24: 1.398601399 | J24: 1.57480315 | K24: 2.247191011 | L24: -0.3354727363 | M24: -0.4541302801 | N24: -0.8096809968 | O24: 3.218875825 | P24: 0.3354727363 | Q24: 0.4541302801 | R24: 0.8096809968 | S24: 0.5104583404
A25: 26 | B25: 0.3 | C25: 0.41 | D25: 0.54 | E25: 2440 | F25: 0.7 | G25: 0.59 | H25: 0.46 | I25: 1.428571429 | J25: 1.694915254 | K25: 2.173913043 | L25: -0.3566749439 | M25: -0.5276327421 | N25: -0.7765287895 | O25: 3.258096538 | P25: 0.3566749439 | Q25: 0.5276327421 | R25: 0.7765287895 | S25: 0.5242473215
A26: 27 | B26: 0.32 | C26: 0.375 | D26: 0.57 | E26: 2440 | F26: 0.68 | G26: 0.625 | H26: 0.43 | I26: 1.470588235 | J26: 1.6 | K26: 2.325581395 | L26: -0.3856624808 | M26: -0.4700036292 | N26: -0.8439700703 | O26: 3.295836866 | P26: 0.3856624808 | Q26: 0.4700036292 | R26: 0.8439700703 | S26: 0.5376479067
A27: 28 | B27: 0.325 | C27: 0.37 | D27: 0.59 | E27: 2440 | F27: 0.675 | G27: 0.63 | H27: 0.41 | I27: 1.481481481 | J27: 1.587301587 | K27: 2.43902439 | L27: -0.3930425881 | M27: -0.4620354596 | N27: -0.8915981193 | O27: 3.33220451 | P27: 0.3930425881 | Q27: 0.4620354596 | R27: 0.8915981193 | S27: 0.5506710359
A28: 29 | B28: 0.34 | C28: 0.38 | D28: 0.595 | E28: 2440 | F28: 0.66 | G28: 0.62 | H28: 0.405 | I28: 1.515151515 | J28: 1.612903226 | K28: 2.469135802 | L28: -0.415515444 | M28: -0.4780358009 | N28: -0.9038682119 | O28: 3.36729583 | P28: 0.415515444 | Q28: 0.4780358009 | R28: 0.9038682119 | S28: 0.563327341
A29: 30 | B29: 0.365 | C29: 0.47 | D29: 0.595 | E29: 2440 | F29: 0.635 | G29: 0.53 | H29: 0.405 | I29: 1.57480315 | J29: 1.886792453 | K29: 2.469135802 | L29: -0.4541302801 | M29: -0.6348782724 | N29: -0.9038682119 | O29: 3.401197382 | P29: 0.4541302801 | Q29: 0.6348782724 | R29: 0.9038682119 | S29: 0.5756271543
A30: 31 | B30: 0.355 | C30: 0.505 | D30: 0.655 | E30: 2440 | F30: 0.645 | G30: 0.495 | H30: 0.345 | I30: 1.550387597 | J30: 2.02020202 | K30: 2.898550725 | L30: -0.4385049622 | M30: -0.7031975164 | N30: -1.064210862 | O30: 3.433987204 | P30: 0.4385049622 | Q30: 0.7031975164 | R30: 1.064210862 | S30: 0.5875805173
A31: 32 | B31: 0.38 | C31: 0.525 | D31: 0.61 | E31: 2440 | F31: 0.62 | G31: 0.475 | H31: 0.39 | I31: 1.612903226 | J31: 2.105263158 | K31: 2.564102564 | L31: -0.4780358009 | M31: -0.7444404749 | N31: -0.9416085399 | O31: 3.465735903 | P31: 0.4780358009 | Q31: 0.7444404749 | R31: 0.9416085399 | S31: 0.5991971884
A32: 33 | B32: 0.385 | C32: 0.53 | D32: 0.665 | E32: 2440 | F32: 0.615 | G32: 0.47 | H32: 0.335 | I32: 1.62601626 | J32: 2.127659574 | K32: 2.985074627 | L32: -0.4861330112 | M32: -0.7550225843 | N32: -1.093624747 | O32: 3.496507561 | P32: 0.4861330112 | Q32: 0.7550225843 | R32: 1.093624747 | S32: 0.6104866513
A33: 34 | B33: 0.4 | C33: 0.445 | D33: 0.68 | E33: 2440 | F33: 0.6 | G33: 0.555 | H33: 0.32 | I33: 1.666666667 | J33: 1.801801802 | K33: 3.125 | L33: -0.5108256238 | M33: -0.5887871652 | N33: -1.139434283 | O33: 3.526360525 | P33: 0.5108256238 | Q33: 0.5887871652 | R33: 1.139434283 | S33: 0.6214581225
A34: 35 | B34: 0.39 | C34: 0.57 | D34: 0.67 | E34: 2440 | F34: 0.61 | G34: 0.43 | H34: 0.33 | I34: 1.639344262 | J34: 2.325581395 | K34: 3.03030303 | L34: -0.4942963218 | M34: -0.8439700703 | N34: -1.108662625 | O34: 3.555348061 | P34: 0.4942963218 | Q34: 0.8439700703 | R34: 1.108662625 | S34: 0.6321205588
A35: 36 | B35: 0.42 | C35: 0.585 | D35: 0.705 | E35: 2440 | F35: 0.58 | G35: 0.415 | H35: 0.295 | I35: 1.724137931 | J35: 2.409638554 | K35: 3.389830508 | L35: -0.5447271754 | M35: -0.8794767588 | N35: -1.220779923 | O35: 3.583518938 | P35: 0.5447271754 | Q35: 0.8794767588 | R35: 1.220779923 | S35: 0.642482665
A36: 37 | B36: 0.435 | C36: 0.6 | D36: 0.715 | E36: 2440 | F36: 0.565 | G36: 0.4 | H36: 0.285 | I36: 1.769911504 | J36: 2.5 | K36: 3.50877193 | L36: -0.5709295478 | M36: -0.9162907319 | N36: -1.255266099 | O36: 3.610917913 | P36: 0.5709295478 | Q36: 0.9162907319 | R36: 1.255266099 | S36: 0.6525529005
A37: 38 | B37: 0.47 | C37: 0.55 | D37: 0.71 | E37: 2440 | F37: 0.53 | G37: 0.45 | H37: 0.29 | I37: 1.886792453 | J37: 2.222222222 | K37: 3.448275862 | L37: -0.6348782724 | M37: -0.7985076962 | N37: -1.237874356 | O37: 3.63758616 | P37: 0.6348782724 | Q37: 0.7985076962 | R37: 1.237874356 | S37: 0.6623394863
A38: 39 | B38: 0.46 | C38: 0.64 | D38: 0.715 | E38: 2440 | F38: 0.54 | G38: 0.36 | H38: 0.285 | I38: 1.851851852 | J38: 2.777777778 | K38: 3.50877193 | L38: -0.6161861394 | M38: -1.021651248 | N38: -1.255266099 | O38: 3.663561646 | P38: 0.6161861394 | Q38: 1.021651248 | R38: 1.255266099 | S38: 0.6718504122
A39: 40 | B39: 0.465 | C39: 0.59 | D39: 0.725 | E39: 2440 | F39: 0.535 | G39: 0.41 | H39: 0.275 | I39: 1.869158879 | J39: 2.43902439 | K39: 3.636363636 | L39: -0.6254885321 | M39: -0.8915981193 | N39: -1.290984181 | O39: 3.688879454 | P39: 0.6254885321 | Q39: 0.8915981193 | R39: 1.290984181 | S39: 0.6810934427
A40: 41 | B40: 0.475 | C40: 0.595 | D40: 0.745 | E40: 2440 | F40: 0.525 | G40: 0.405 | H40: 0.255 | I40: 1.904761905 | J40: 2.469135802 | K40: 3.921568627 | L40: -0.6443570164 | M40: -0.9038682119 | N40: -1.366491734 | O40: 3.713572067 | P40: 0.6443570164 | Q40: 0.9038682119 | R40: 1.366491734 | S40: 0.6900761235
A41: 42 | B41: 0.5 | C41: 0.645 | D41: 0.74 | E41: 2440 | F41: 0.5 | G41: 0.355 | H41: 0.26 | I41: 2 | J41: 2.816901408 | K41: 3.846153846 | L41: -0.6931471806 | M41: -1.03563749 | N41: -1.347073648 | O41: 3.737669618 | P41: 0.6931471806 | Q41: 1.03563749 | R41: 1.347073648 | S41: 0.6988057881
A42: 43 | B42: 0.495 | C42: 0.635 | D42: 0.785 | E42: 2440 | F42: 0.505 | G42: 0.365 | H42: 0.215 | I42: 1.98019802 | J42: 2.739726027 | K42: 4.651162791 | L42: -0.6831968497 | M42: -1.007857925 | N42: -1.537117251 | O42: 3.761200116 | P42: 0.6831968497 | Q42: 1.007857925 | R42: 1.537117251 | S42: 0.7072895631
A43: 44 | B43: 0.515 | C43: 0.62 | D43: 0.78 | E43: 2440 | F43: 0.485 | G43: 0.38 | H43: 0.22 | I43: 2.06185567 | J43: 2.631578947 | K43: 4.545454545 | L43: -0.723606388 | M43: -0.9675840263 | N43: -1.514127733 | O43: 3.784189634 | P43: 0.723606388 | Q43: 0.9675840263 | R43: 1.514127733 | S43: 0.7155343745
A44: 45 | B44: 0.515 | C44: 0.64 | D44: 0.765 | E44: 2440 | F44: 0.485 | G44: 0.36 | H44: 0.235 | I44: 2.06185567 | J44: 2.777777778 | K44: 4.255319149 | L44: -0.723606388 | M44: -1.021651248 | N44: -1.448169765 | O44: 3.80666249 | P44: 0.723606388 | Q44: 1.021651248 | R44: 1.448169765 | S44: 0.7235469534
A45: 46 | B45: 0.53 | C45: 0.66 | D45: 0.805 | E45: 2440 | F45: 0.47 | G45: 0.34 | H45: 0.195 | I45: 2.127659574 | J45: 2.941176471 | K45: 5.128205128 | L45: -0.7550225843 | M45: -1.078809661 | N45: -1.63475572 | O45: 3.828641396 | P45: 0.7550225843 | Q45: 1.078809661 | R45: 1.63475572 | S45: 0.7313338409
A46: 47 | B46: 0.54 | C46: 0.62 | D46: 0.785 | E46: 2440 | F46: 0.46 | G46: 0.38 | H46: 0.215 | I46: 2.173913043 | J46: 2.631578947 | K46: 4.651162791 | L46: -0.7765287895 | M46: -0.9675840263 | N46: -1.537117251 | O46: 3.850147602 | P46: 0.7765287895 | Q46: 0.9675840263 | R46: 1.537117251 | S46: 0.7389013942
A47: 48 | B47: 0.56 | C47: 0.695 | D47: 0.815 | E47: 2440 | F47: 0.44 | G47: 0.305 | H47: 0.185 | I47: 2.272727273 | J47: 3.278688525 | K47: 5.405405405 | L47: -0.8209805521 | M47: -1.187443502 | N47: -1.687399454 | O47: 3.871201011 | P47: 0.8209805521 | Q47: 1.187443502 | R47: 1.687399454 | S47: 0.7462557912
A48: 49 | B48: 0.555 | C48: 0.655 | D48: 0.805 | E48: 2440 | F48: 0.445 | G48: 0.345 | H48: 0.195 | I48: 2.247191011 | J48: 2.898550725 | K48: 5.128205128 | L48: -0.8096809968 | M48: -1.064210862 | N48: -1.63475572 | O48: 3.891820298 | P48: 0.8096809968 | Q48: 1.064210862 | R48: 1.63475572 | S48: 0.7534030361
A49: 50 | B49: 0.56 | C49: 0.68 | D49: 0.84 | E49: 2440 | F49: 0.44 | G49: 0.32 | H49: 0.16 | I49: 2.272727273 | J49: 3.125 | K49: 6.25 | L49: -0.8209805521 | M49: -1.139434283 | N49: -1.832581464 | O49: 3.912023005 | P49: 0.8209805521 | Q49: 1.139434283 | R49: 1.832581464 | S49: 0.7603489636
A50: 51 | B50: 0.57 | C50: 0.655 | D50: 0.83 | E50: 2440 | F50: 0.43 | G50: 0.345 | H50: 0.17 | I50: 2.325581395 | J50: 2.898550725 | K50: 5.882352941 | L50: -0.8439700703 | M50: -1.064210862 | N50: -1.771956842 | O50: 3.931825633 | P50: 0.8439700703 | Q50: 1.064210862 | R50: 1.771956842 | S50: 0.7670992443
A51: 52 | B51: 0.59 | C51: 0.695 | D51: 0.835 | E51: 2440 | F51: 0.41 | G51: 0.305 | H51: 0.165 | I51: 2.43902439 | J51: 3.278688525 | K51: 6.060606061 | L51: -0.8915981193 | M51: -1.187443502 | N51: -1.801809805 | O51: 3.951243719 | P51: 0.8915981193 | Q51: 1.187443502 | R51: 1.801809805 | S51: 0.7736593889
A52: 53 | B52: 0.625 | C52: 0.735 | D52: 0.83 | E52: 2440 | F52: 0.375 | G52: 0.265 | H52: 0.17 | I52: 2.666666667 | J52: 3.773584906 | K52: 5.882352941 | L52: -0.980829253 | M52: -1.328025453 | N52: -1.771956842 | O52: 3.970291914 | P52: 0.980829253 | Q52: 1.328025453 | R52: 1.771956842 | S52: 0.7800347532
A53: 54 | B53: 0.615 | C53: 0.71 | D53: 0.83 | E53: 2440 | F53: 0.385 | G53: 0.29 | H53: 0.17 | I53: 2.597402597 | J53: 3.448275862 | K53: 5.882352941 | L53: -0.9545119447 | M53: -1.237874356 | N53: -1.771956842 | O53: 3.988984047 | P53: 0.9545119447 | Q53: 1.237874356 | R53: 1.771956842 | S53: 0.7862305418
A54: 55 | B54: 0.605 | C54: 0.705 | D54: 0.87 | E54: 2440 | F54: 0.395 | G54: 0.295 | H54: 0.13 | I54: 2.53164557 | J54: 3.389830508 | K54: 7.692307692 | L54: -0.9288695141 | M54: -1.220779923 | N54: -2.040220829 | O54: 4.007333185 | P54: 0.9288695141 | Q54: 1.220779923 | R54: 2.040220829 | S54: 0.7922518129
A55: 56 | B55: 0.655 | C55: 0.795 | D55: 0.86 | E55: 2440 | F55: 0.345 | G55: 0.205 | H55: 0.14 | I55: 2.898550725 | J55: 4.87804878 | K55: 7.142857143 | L55: -1.064210862 | M55: -1.5847453 | N55: -1.966112856 | O55: 4.025351691 | P55: 1.064210862 | Q55: 1.5847453 | R55: 1.966112856 | S55: 0.798103482
A56: 57 | B56: 0.64 | C56: 0.815 | D56: 0.87 | E56: 2440 | F56: 0.36 | G56: 0.185 | H56: 0.13 | I56: 2.777777778 | J56: 5.405405405 | K56: 7.692307692 | L56: -1.021651248 | M56: -1.687399454 | N56: -2.040220829 | O56: 4.043051268 | P56: 1.021651248 | Q56: 1.687399454 | R56: 2.040220829 | S56: 0.8037903265
A57: 58 | B57: 0.64 | C57: 0.705 | D57: 0.875 | E57: 2440 | F57: 0.36 | G57: 0.295 | H57: 0.125 | I57: 2.777777778 | J57: 3.389830508 | K57: 8 | L57: -1.021651248 | M57: -1.220779923 | N57: -2.079441542 | O57: 4.060443011 | P57: 1.021651248 | Q57: 1.220779923 | R57: 2.079441542 | S57: 0.8093169889
A58: 59 | B58: 0.66 | C58: 0.81 | D58: 0.89 | E58: 2440 | F58: 0.34 | G58: 0.19 | H58: 0.11 | I58: 2.941176471 | J58: 5.263157895 | K58: 9.090909091 | L58: -1.078809661 | M58: -1.660731207 | N58: -2.207274913 | O58: 4.077537444 | P58: 1.078809661 | Q58: 1.660731207 | R58: 2.207274913 | S58: 0.8146879811
A59: 60 | B59: 0.64 | C59: 0.765 | D59: 0.9 | E59: 2440 | F59: 0.36 | G59: 0.235 | H59: 0.1 | I59: 2.777777778 | J59: 4.255319149 | K59: 10 | L59: -1.021651248 | M59: -1.448169765 | N59: -2.302585093 | O59: 4.094344562 | P59: 1.021651248 | Q59: 1.448169765 | R59: 2.302585093 | S59: 0.8199076879
A60: 61 | B60: 0.69 | C60: 0.825 | D60: 0.9 | E60: 2440 | F60: 0.31 | G60: 0.175 | H60: 0.1 | I60: 3.225806452 | J60: 5.714285714 | K60: 10 | L60: -1.171182982 | M60: -1.742969305 | N60: -2.302585093 | O60: 4.110873864 | P60: 1.171182982 | Q60: 1.742969305 | R60: 2.302585093 | S60: 0.8249803705
A61: 62 | B61: 0.67 | C61: 0.75 | D61: 0.895 | E61: 2440 | F61: 0.33 | G61: 0.25 | H61: 0.105 | I61: 3.03030303 | J61: 4 | K61: 9.523809524 | L61: -1.108662625 | M61: -1.386294361 | N61: -2.253794929 | O61: 4.127134385 | P61: 1.108662625 | Q61: 1.386294361 | R61: 2.253794929 | S61: 0.8299101703
A62: 63 | B62: 0.665 | C62: 0.79 | D62: 0.905 | E62: 2440 | F62: 0.335 | G62: 0.21 | H62: 0.095 | I62: 2.985074627 | J62: 4.761904762 | K62: 10.52631579 | L62: -1.093624747 | M62: -1.560647748 | N62: -2.353878387 | O62: 4.143134726 | P62: 1.093624747 | Q62: 1.560647748 | R62: 2.353878387 | S62: 0.8347011118
A63: 64 | B63: 0.67 | C63: 0.845 | D63: 0.93 | E63: 2440 | F63: 0.33 | G63: 0.155 | H63: 0.07 | I63: 3.03030303 | J63: 6.451612903 | K63: 14.28571429 | L63: -1.108662625 | M63: -1.864330162 | N63: -2.659260037 | O63: 4.158883083 | P63: 1.108662625 | Q63: 1.864330162 | R63: 2.659260037 | S63: 0.8393571062
A64: 65 | B64: 0.7 | C64: 0.815 | D64: 0.92 | E64: 2440 | F64: 0.3 | G64: 0.185 | H64: 0.08 | I64: 3.333333333 | J64: 5.405405405 | K64: 12.5 | L64: -1.203972804 | M64: -1.687399454 | N64: -2.525728644 | O64: 4.17438727 | P64: 1.203972804 | Q64: 1.687399454 | R64: 2.525728644 | S64: 0.8438819547
A65: 66 | B65: 0.685 | C65: 0.79 | D65: 0.915 | E65: 2440 | F65: 0.315 | G65: 0.21 | H65: 0.085 | I65: 3.174603175 | J65: 4.761904762 | K65: 11.76470588 | L65: -1.15518264 | M65: -1.560647748 | N65: -2.465104022 | O65: 4.189654742 | P65: 1.15518264 | Q65: 1.560647748 | R65: 2.465104022 | S65: 0.8482793512
A66: 67 | B66: 0.725 | C66: 0.82 | D66: 0.93 | E66: 2440 | F66: 0.275 | G66: 0.18 | H66: 0.07 | I66: 3.636363636 | J66: 5.555555556 | K66: 14.28571429 | L66: -1.290984181 | M66: -1.714798428 | N66: -2.659260037 | O66: 4.204692619 | P66: 1.290984181 | Q66: 1.714798428 | R66: 2.659260037 | S66: 0.8525528857
A67: 68 | B67: 0.765 | C67: 0.845 | D67: 0.925 | E67: 2440 | F67: =1-B67 -> 0.235 | G67: =1-C67 -> 0.155 | H67: =1-D67 -> 0.075 | I67: =1/F67 -> 4.255319149 | J67: =1/G67 -> 6.451612903 | K67: =1/H67 -> 13.33333333 | L67: =LN(F67) -> -1.448169765 | M67: =LN(G67) -> -1.864330162 | N67: =LN(H67) -> -2.590267165 | O67: =LN(A67) -> 4.219507705 | P67: =LN(I67) -> 1.448169765 | Q67: =LN(J67) -> 1.864330162 | R67: =LN(K67) -> 2.590267165 | S67: =1-EXP(-A67/35) -> 0.8567060469
A68: 69 | B68: 0.755 | C68: 0.825 | D68: 0.93 | E68: 2440 | F68: 0.245 | G68: 0.175 | H68: 0.07 | I68: 4.081632653 | J68: 5.714285714 | K68: 14.28571429 | L68: -1.406497068 | M68: -1.742969305 | N68: -2.659260037 | O68: 4.234106505 | P68: 1.406497068 | Q68: 1.742969305 | R68: 2.659260037 | S68: 0.8607422256
A69: 70 | B69: 0.75 | C69: 0.81 | D69: 0.935 | E69: 2440 | F69: 0.25 | G69: 0.19 | H69: 0.065 | I69: 4 | J69: 5.263157895 | K69: 15.38461538 | L69: -1.386294361 | M69: -1.660731207 | N69: -2.733368009 | O69: 4.248495242 | P69: 1.386294361 | Q69: 1.660731207 | R69: 2.733368009 | S69: 0.8646647168
A70: 71 | B70: 0.755 | C70: 0.85 | D70: 0.94 | E70: 2440 | F70: 0.245 | G70: 0.15 | H70: 0.06 | I70: 4.081632653 | J70: 6.666666667 | K70: 16.66666667 | L70: -1.406497068 | M70: -1.897119985 | N70: -2.813410717 | O70: 4.262679877 | P70: 1.406497068 | Q70: 1.897119985 | R70: 2.813410717 | S70: 0.8684767226
A71: 72 | B71: 0.755 | C71: 0.82 | D71: 0.96 | E71: 2440 | F71: 0.245 | G71: 0.18 | H71: 0.04 | I71: 4.081632653 | J71: 5.555555556 | K71: 25 | L71: -1.406497068 | M71: -1.714798428 | N71: -3.218875825 | O71: 4.276666119 | P71: 1.406497068 | Q71: 1.714798428 | R71: 3.218875825 | S71: 0.8721813552
A72: 73 | B72: 0.79 | C72: 0.84 | D72: 0.94 | E72: 2440 | F72: 0.21 | G72: 0.16 | H72: 0.06 | I72: 4.761904762 | J72: 6.25 | K72: 16.66666667 | L72: -1.560647748 | M72: -1.832581464 | N72: -2.813410717 | O72: 4.290459441 | P72: 1.560647748 | Q72: 1.832581464 | R72: 2.813410717 | S72: 0.8757816389
A73: 74 | B73: 0.745 | C73: 0.845 | D73: 0.96 | E73: 2440 | F73: 0.255 | G73: 0.155 | H73: 0.04 | I73: 3.921568627 | J73: 6.451612903 | K73: 25 | L73: -1.366491734 | M73: -1.864330162 | N73: -3.218875825 | O73: 4.304065093 | P73: 1.366491734 | Q73: 1.864330162 | R73: 3.218875825 | S73: 0.879280513
A74: 75 | B74: 0.755 | C74: 0.88 | D74: 0.96 | E74: 2440 | F74: 0.245 | G74: 0.12 | H74: 0.04 | I74: 4.081632653 | J74: 8.333333333 | K74: 25 | L74: -1.406497068 | M74: -2.120263536 | N74: -3.218875825 | O74: 4.317488114 | P74: 1.406497068 | Q74: 2.120263536 | R74: 3.218875825 | S74: 0.8826808339
A75: 76 | B75: 0.775 | C75: 0.86 | D75: 0.945 | E75: 2440 | F75: 0.225 | G75: 0.14 | H75: 0.055 | I75: 4.444444444 | J75: 7.142857143 | K75: 18.18181818 | L75: -1.491654877 | M75: -1.966112856 | N75: -2.900422094 | O75: 4.33073334 | P75: 1.491654877 | Q75: 1.966112856 | R75: 2.900422094 | S75: 0.8859853775
A76: 77 | B76: 0.775 | C76: 0.89 | D76: 0.96 | E76: 2440 | F76: 0.225 | G76: 0.11 | H76: 0.04 | I76: 4.444444444 | J76: 9.090909091 | K76: 25 | L76: -1.491654877 | M76: -2.207274913 | N76: -3.218875825 | O76: 4.343805422 | P76: 1.491654877 | Q76: 2.207274913 | R76: 3.218875825 | S76: 0.8891968416
A77: 78 | B77: 0.83 | C77: 0.885 | D77: 0.945 | E77: 2440 | F77: 0.17 | G77: 0.115 | H77: 0.055 | I77: 5.882352941 | J77: 8.695652174 | K77: 18.18181818 | L77: -1.771956842 | M77: -2.162823151 | N77: -2.900422094 | O77: 4.356708827 | P77: 1.771956842 | Q77: 2.162823151 | R77: 2.900422094 | S77: 0.892317848
A78: 79 | B78: 0.825 | C78: 0.88 | D78: 0.95 | E78: 2440 | F78: 0.175 | G78: 0.12 | H78: 0.05 | I78: 5.714285714 | J78: 8.333333333 | K78: 20 | L78: -1.742969305 | M78: -2.120263536 | N78: -2.995732274 | O78: 4.369447852 | P78: 1.742969305 | Q78: 2.120263536 | R78: 2.995732274 | S78: 0.8953509447
A79: 80 | B79: 0.82 | C79: 0.88 | D79: 0.96 | E79: 2440 | F79: 0.18 | G79: 0.12 | H79: 0.04 | I79: 5.555555556 | J79: 8.333333333 | K79: 25 | L79: -1.714798428 | M79: -2.120263536 | N79: -3.218875825 | O79: 4.382026635 | P79: 1.714798428 | Q79: 2.120263536 | R79: 3.218875825 | S79: 0.8982986077
A80: 81 | B80: 0.81 | C80: 0.885 | D80: 0.965 | E80: 2440 | F80: 0.19 | G80: 0.115 | H80: 0.035 | I80: 5.263157895 | J80: 8.695652174 | K80: 28.57142857 | L80: -1.660731207 | M80: -2.162823151 | N80: -3.352407217 | O80: 4.394449155 | P80: 1.660731207 | Q80: 2.162823151 | R80: 3.352407217 | S80: 0.9011632435
A81: 82 | B81: 0.825 | C81: 0.92 | D81: 0.965 | E81: 2440 | F81: 0.175 | G81: 0.08 | H81: 0.035 | I81: 5.714285714 | J81: 12.5 | K81: 28.57142857 | L81: -1.742969305 | M81: -2.525728644 | N81: -3.352407217 | O81: 4.406719247 | P81: 1.742969305 | Q81: 2.525728644 | R81: 3.352407217 | S81: 0.9039471908
A82: 83 | B82: 0.825 | C82: 0.87 | D82: 0.965 | E82: 2440 | F82: 0.175 | G82: 0.13 | H82: 0.035 | I82: 5.714285714 | J82: 7.692307692 | K82: 28.57142857 | L82: -1.742969305 | M82: -2.040220829 | N82: -3.352407217 | O82: 4.418840608 | P82: 1.742969305 | Q82: 2.040220829 | R82: 3.352407217 | S82: 0.9066527223
A83: 84 | B83: 0.84 | C83: 0.91 | D83: 0.965 | E83: 2440 | F83: 0.16 | G83: 0.09 | H83: 0.035 | I83: 6.25 | J83: 11.11111111 | K83: 28.57142857 | L83: -1.832581464 | M83: -2.407945609 | N83: -3.352407217 | O83: 4.430816799 | P83: 1.832581464 | Q83: 2.407945609 | R83: 3.352407217 | S83: 0.9092820467
A84: 85 | B84: 0.855 | C84: 0.905 | D84: 0.965 | E84: 2440 | F84: 0.145 | G84: 0.095 | H84: 0.035 | I84: 6.896551724 | J84: 10.52631579 | K84: 28.57142857 | L84: -1.931021537 | M84: -2.353878387 | N84: -3.352407217 | O84: 4.442651256 | P84: 1.931021537 | Q84: 2.353878387 | R84: 3.352407217 | S84: 0.9118373106
A85: 86 | B85: 0.82 | C85: 0.925 | D85: 0.965 | E85: 2440 | F85: 0.18 | G85: 0.075 | H85: 0.035 | I85: 5.555555556 | J85: 13.33333333 | K85: 28.57142857 | L85: -1.714798428 | M85: -2.590267165 | N85: -3.352407217 | O85: 4.454347296 | P85: 1.714798428 | Q85: 2.590267165 | R85: 3.352407217 | S85: 0.9143206001
A86: 87 | B86: 0.84 | C86: 0.91 | D86: 0.96 | E86: 2440 | F86: 0.16 | G86: 0.09 | H86: 0.04 | I86: 6.25 | J86: 11.11111111 | K86: 25 | L86: -1.832581464 | M86: -2.407945609 | N86: -3.218875825 | O86: 4.465908119 | P86: 1.832581464 | Q86: 2.407945609 | R86: 3.218875825 | S86: 0.9167339425
A87: 88 | B87: 0.82 | C87: 0.925 | D87: 0.965 | E87: 2440 | F87: 0.18 | G87: 0.075 | H87: 0.035 | I87: 5.555555556 | J87: 13.33333333 | K87: 28.57142857 | L87: -1.714798428 | M87: -2.590267165 | N87: -3.352407217 | O87: 4.477336814 | P87: 1.714798428 | Q87: 2.590267165 | R87: 3.352407217 | S87: 0.9190793079
A88: 89 | B88: 0.87 | C88: 0.915 | D88: 0.96 | E88: 2440 | F88: 0.13 | G88: 0.085 | H88: 0.04 | I88: 7.692307692 | J88: 11.76470588 | K88: 25 | L88: -2.040220829 | M88: -2.465104022 | N88: -3.218875825 | O88: 4.48863637 | P88: 2.040220829 | Q88: 2.465104022 | R88: 3.218875825 | S88: 0.9213586112
A89: 90 | B89: 0.89 | C89: 0.95 | D89: 0.965 | E89: 2440 | F89: 0.11 | G89: 0.05 | H89: 0.035 | I89: 9.090909091 | J89: 20 | K89: 28.57142857 | L89: -2.207274913 | M89: -2.995732274 | N89: -3.352407217 | O89: 4.49980967 | P89: 2.207274913 | Q89: 2.995732274 | R89: 3.352407217 | S89: 0.923573713
A90: 91 | B90: 0.865 | C90: 0.94 | D90: 0.965 | E90: 2440 | F90: 0.135 | G90: 0.06 | H90: 0.035 | I90: 7.407407407 | J90: 16.66666667 | K90: 28.57142857 | L90: -2.002480501 | M90: -2.813410717 | N90: -3.352407217 | O90: 4.510859507 | P90: 2.002480501 | Q90: 2.813410717 | R90: 3.352407217 | S90: 0.9257264218
A91: 92 | B91: 0.87 | C91: 0.92 | D91: 0.96 | E91: 2440 | F91: 0.13 | G91: 0.08 | H91: 0.04 | I91: 7.692307692 | J91: 12.5 | K91: 25 | L91: -2.040220829 | M91: -2.525728644 | N91: -3.218875825 | O91: 4.521788577 | P91: 2.040220829 | Q91: 2.525728644 | R91: 3.218875825 | S91: 0.9278184949
A92: 93 | B92: 0.86 | C92: 0.935 | D92: 0.965 | E92: 2440 | F92: 0.14 | G92: 0.065 | H92: 0.035 | I92: 7.142857143 | J92: 15.38461538 | K92: 28.57142857 | L92: -1.966112856 | M92: -2.733368009 | N92: -3.352407217 | O92: 4.532599493 | P92: 1.966112856 | Q92: 2.733368009 | R92: 3.352407217 | S92: 0.9298516404
A93: 94 | B93: 0.875 | C93: 0.92 | D93: 0.965 | E93: 2440 | F93: 0.125 | G93: 0.08 | H93: 0.035 | I93: 8 | J93: 12.5 | K93: 28.57142857 | L93: -2.079441542 | M93: -2.525728644 | N93: -3.352407217 | O93: 4.543294782 | P93: 2.079441542 | Q93: 2.525728644 | R93: 3.352407217 | S93: 0.931827518
A94: 95 | B94: 0.865 | C94: 0.89 | D94: 0.96 | E94: 2440 | F94: 0.135 | G94: 0.11 | H94: 0.04 | I94: 7.407407407 | J94: 9.090909091 | K94: 25 | L94: -2.002480501 | M94: -2.207274913 | N94: -3.218875825 | O94: 4.553876892 | P94: 2.002480501 | Q94: 2.207274913 | R94: 3.218875825 | S94: 0.9337477408
A95: 96 | B95: 0.86 | C95: 0.94 | D95: 0.96 | E95: 2440 | F95: 0.14 | G95: 0.06 | H95: 0.04 | I95: 7.142857143 | J95: 16.66666667 | K95: 25 | L95: -1.966112856 | M95: -2.813410717 | N95: -3.218875825 | O95: 4.564348191 | P95: 1.966112856 | Q95: 2.813410717 | R95: 3.218875825 | S95: 0.9356138765
A96: 97 | B96: 0.92 | C96: 0.95 | D96: 0.965 | E96: 2440 | F96: 0.08 | G96: 0.05 | H96: 0.035 | I96: 12.5 | J96: 20 | K96: 28.57142857 | L96: -2.525728644 | M96: -2.995732274 | N96: -3.352407217 | O96: 4.574710979 | P96: 2.525728644 | Q96: 2.995732274 | R96: 3.352407217 | S96: 0.9374274485
A97: 98 | B97: 0.905 | C97: 0.935 | D97: 0.965 | E97: 2440 | F97: 0.095 | G97: 0.065 | H97: 0.035 | I97: 10.52631579 | J97: 15.38461538 | K97: 28.57142857 | L97: -2.353878387 | M97: -2.733368009 | N97: -3.352407217 | O97: 4.584967479 | P97: 2.353878387 | Q97: 2.733368009 | R97: 3.352407217 | S97: 0.9391899374
A98: 99 | B98: 0.895 | C98: 0.925 | D98: 0.96 | E98: 2440 | F98: 0.105 | G98: 0.075 | H98: 0.04 | I98: 9.523809524 | J98: 13.33333333 | K98: 25 | L98: -2.253794929 | M98: -2.590267165 | N98: -3.218875825 | O98: 4.59511985 | P98: 2.253794929 | Q98: 2.590267165 | R98: 3.218875825 | S98: 0.940902782
A99: 100 | B99: 0.89 | C99: 0.94 | D99: 0.96 | E99: 2440 | F99: 0.11 | G99: 0.06 | H99: 0.04 | I99: 9.090909091 | J99: 16.66666667 | K99: 25 | L99: -2.207274913 | M99: -2.813410717 | N99: -3.218875825 | O99: 4.605170186 | P99: 2.207274913 | Q99: 2.813410717 | R99: 3.218875825 | S99: 0.9425673807
